fUST/lending_fUST_20241228
["ID","MTS","AMOUNT","RATE_DAILY","PERIOD"]
[346842242,1735319435144,-1341.61,0.00016476,2]
[346842244,1735319435154,-2159.92,0.00016476,2]
[346842246,1735319435163,-500.0,0.00016644,2]
[346842248,1735319435173,-500.0,0.00016739,2]
[346842250,1735319435182,-252.41227213,0.00016749,2]
[346842252,1735319435192,-1341.61,0.0001675,2]
[346842254,1735319435202,-2159.92,0.0001675,2]
[346842256,1735319435211,-5750.91599742,0.00016873,2]
[346842258,1735319435220,-500.0,0.00016918,2]
[346842260,1735319435230,-257.0,0.0001694,2]
[346842262,1735319435240,-163.96468302,0.00016977,2]
[346842264,1735319435249,-823.0,0.00016984,2]
[346842266,1735319435258,-500.0,0.00017013,2]
[346842268,1735319435268,-1341.61,0.00017024,2]
[346842270,1735319435278,-2159.92,0.00017024,2]
[346842272,1735319435287,-277.24,0.00017192,2]
[346842274,1735319435297,-2500.0,0.00017261,2]
[346842276,1735319435306,-2500.0,0.00017261,2]
[346842278,1735319435315,-500.0,0.00017287,2]
[346842280,1735319435325,-1341.61,0.00017298,2]
[346842282,1735319435335,-2159.92,0.00017298,2]
[346842284,1735319435344,-594.91,0.000173,7]
[346842286,1735319435354,-998.70168781,0.00017475,2]
[346842288,1735319435364,-231.91,0.00017561,2]
[346842290,1735319435373,-1341.61,0.00017572,2]
[346842292,1735319435383,-2159.92,0.00017572,2]
[346842294,1735319435393,-10310.54764679,0.0001771,2]
[346842296,1735319435402,-2000.0,0.000178,2]
[346842298,1735319435412,-2000.0,0.000178,2]
[346842300,1735319435422,-500.0,0.00017808,4]
[346842302,1735319435431,-1341.61,0.00017846,2]
[346842304,1735319435441,-2159.92,0.00017846,2]
[346842306,1735319435451,-1341.61,0.0001812,2]
[346842308,1735319435461,-2159.92,0.0001812,2]
[346842310,1735319435471,-407.0,0.0001817,2]
[346842312,1735319435480,-160.0,0.00018353,3]
[346842314,1735319435490,-1341.61,0.00018394,2]
[346842316,1735319435499,-2159.92,0.00018394,2]
[346842318,1735319435510,-720.0,0.00018628,2]
[346842320,1735319435519,-1341.61,0.00018668,2]
[346842322,1735319435529,-2159.92,0.00018668,2]
[346842324,1735319435540,-220.60384908,0.00018777,2]
[346842326,1735319435551,-2000.0,0.000188,2]
[346842329,1735319435561,-2000.0,0.000188,2]
[346842331,1735319435571,-5750.91599742,0.00018873,2]
[346842333,1735319435580,-6917.31678906,0.000189,2]
[346842335,1735319435591,-1341.61,0.00018942,2]
[346842337,1735319435601,-2159.92,0.00018942,2]
[346842339,1735319435612,-302.66710251,0.00019,2]
[346842341,1735319435623,-302.63687509,0.00019,2]
[346842343,1735319435634,-686.037,0.0001908,2]
[346842345,1735319435644,-151.0,0.000191,2]
[346842347,1735319435654,-500.0,0.00019178,2]
[346842349,1735319435663,-282.6349773,0.00019178,2]
[346842351,1735319435672,-500.0,0.00019178,6]
[346842353,1735319435683,-302.66710251,0.0001919,2]
[346842355,1735319435692,-302.63687509,0.0001919,2]
[346842357,1735319435702,-1341.61,0.00019216,2]
[346842359,1735319435711,-2159.92,0.00019216,2]
[346842361,1735319435721,-151.0,0.000193,2]
[346842363,1735319435730,-302.66710251,0.0001938,2]
[346842364,1735319435739,-302.63687509,0.0001938,2]
[346842366,1735319435749,-151.0,0.00019392,7]
[346842368,1735319435759,-8689.56900891,0.00019459,2]
[346842370,1735319435768,-1341.61,0.0001949,2]
[346842373,1735319435778,-2159.92,0.0001949,2]
[346842375,1735319435788,-151.0,0.000195,2]
[346842377,1735319435797,-306.0,0.00019562,2]
[346842379,1735319435807,-302.66710251,0.0001957,2]
[346842381,1735319435816,-302.63687509,0.0001957,2]
[346842383,1735319435825,-151.0,0.000197,2]
[346842384,1735319435834,-151.0,0.00019721,7]
[346842386,1735319435844,-302.66710251,0.0001976,2]
[346842388,1735319435855,-302.63687509,0.0001976,2]
[346842391,1735319435864,-1341.73,0.00019764,2]
[346842393,1735319435874,-2159.97037808,0.00019764,2]
[346842394,1735319435883,-8689.56900892,0.00019765,2]
[346842397,1735319435893,-817.599999,0.000198,2]
[346842398,1735319435903,-817.699999,0.000198,2]
[346842400,1735319435912,-734.3226627,0.00019848,2]
[346842402,1735319435922,-500.0,0.00019899,2]
[346842405,1735319435933,-500.0,0.00019899,2]
[346842407,1735319435943,-500.0,0.00019899,2]
[346842409,1735319435952,-500.0,0.00019899,2]
[346842411,1735319435962,-500.0,0.00019899,2]
[346842412,1735319435971,-500.0,0.00019899,2]
[346842414,1735319435981,-500.0,0.00019899,2]
[346842416,1735319435991,-500.0,0.00019899,2]
[346842419,1735319436001,-504.44969084,0.00019899,2]
[346842420,1735319436011,-500.0,0.00019899,2]
[346842422,1735319436020,-500.0,0.00019899,2]
[346842424,1735319436030,-151.0,0.000199,2]
[346842427,1735319436040,-454.00065376,0.0001995,4]
[346842429,1735319436049,-453.95531264,0.0001995,4]
[346842431,1735319436059,-5138.11336074,0.00019992,2]
[346842433,1735319436069,-12185.89378111,0.0002,14]
[346842435,1735319436078,-151.0,0.0002,2]
[346842436,1735319436087,-160.0,0.00020025,4]
[346842438,1735319436096,-160.67045214,0.00020025,5]
[346842440,1735319436106,-163.96468302,0.00020044,2]
[346842442,1735319436116,-4589.33075995,0.00020044,2]
[346842444,1735319436125,-1131.39543082,0.00020044,2]
[346842446,1735319436135,-1131.39543082,0.00020044,2]
[346842449,1735319436144,-1131.39543082,0.00020044,2]
[346842451,1735319436154,-1131.39543082,0.00020044,2]
[346842453,1735319436163,-1131.39543082,0.00020044,2]
[346842455,1735319436172,-1131.39543082,0.00020044,2]
[346842456,1735319436181,-1131.39543082,0.00020044,2]
[346842459,1735319436191,-1131.39543082,0.00020044,2]
[346842460,1735319436200,-1131.39543082,0.00020044,2]
[346842462,1735319436209,-1131.39543082,0.00020044,2]
[346842464,1735319436219,-1131.39543082,0.00020044,2]
[346842466,1735319436228,-1131.39543082,0.00020044,2]
[346842468,1735319436237,-1131.39543082,0.00020044,2]
[346842470,1735319436247,-1131.39543082,0.00020044,2]
[346842472,1735319436256,-1131.39543082,0.00020044,2]
[346842474,1735319436265,-1131.39543082,0.00020044,2]
[346842476,1735319436274,-1131.39543082,0.00020044,2]
[346842478,1735319436285,-1131.39543082,0.00020044,2]
[346842480,1735319436295,-1131.39543082,0.00020044,2]
[346842482,1735319436305,-1131.39,0.00020044,2]
[346842484,1735319436314,-1697.09314623,0.00020044,2]
[346842486,1735319436324,-1697.09314623,0.00020044,2]
[346842488,1735319436333,-1697.09314623,0.00020044,2]
[346842490,1735319436343,-1697.09314623,0.00020044,2]
[346842492,1735319436352,-1697.09314623,0.00020044,2]
[346842494,1735319436365,-1697.09314623,0.00020044,2]
[346842496,1735319436374,-1697.09314623,0.00020044,2]
[346842498,1735319436383,-1697.09314623,0.00020044,2]
[346842500,1735319436392,-1697.09314623,0.00020044,2]
[346842502,1735319436402,-1697.09314623,0.00020044,2]
[346842504,1735319436411,-1697.09314623,0.00020044,2]
[346842506,1735319436420,-1697.09314623,0.00020044,2]
[346842508,1735319436429,-1697.09314623,0.00020044,2]
[346842510,1735319436441,-1697.09314623,0.00020044,2]
[346842512,1735319436450,-1697.09314623,0.00020044,2]
[346842514,1735319436460,-1697.09314623,0.00020044,2]
[346842516,1735319436469,-1697.09314623,0.00020044,2]
[346842518,1735319436479,-1697.09314623,0.00020044,2]
[346842520,1735319436488,-1697.09314623,0.00020044,2]
[346842522,1735319436497,-1697.09,0.00020044,2]
[346842524,1735319436507,-738.41343884,0.00020044,2]
[346842526,1735319436516,-738.41343884,0.00020044,2]
[346842528,1735319436525,-738.41343884,0.00020044,2]
[346842530,1735319436534,-738.41343884,0.00020044,2]
[346842532,1735319436548,-738.41343884,0.00020044,2]
[346842534,1735319436557,-738.41343884,0.00020044,2]
[346842536,1735319436566,-738.41343884,0.00020044,2]
[346842538,1735319436576,-738.41343884,0.00020044,2]
[346842540,1735319436586,-738.41343884,0.00020044,2]
[346842542,1735319436596,-738.41343884,0.00020044,2]
[346842544,1735319436610,-738.41343884,0.00020044,2]
[346842546,1735319436621,-738.41343884,0.00020044,2]
[346842548,1735319436633,-738.41343884,0.00020044,2]
[346842550,1735319436642,-738.41343884,0.00020044,2]
[346842552,1735319436651,-738.41343884,0.00020044,2]
[346842554,1735319436661,-738.41343884,0.00020044,2]
[346842556,1735319436671,-738.41343884,0.00020044,2]
[346842558,1735319436680,-738.41343884,0.00020044,2]
[346842560,1735319436690,-738.41343884,0.00020044,2]
[346842562,1735319436699,-738.41,0.00020044,2]
[346842564,1735319436709,-1107.62015826,0.00020044,2]
[346842566,1735319436719,-1107.62015826,0.00020044,2]
[346842568,1735319436728,-1107.62015826,0.00020044,2]
[346842570,1735319436737,-1107.62015826,0.00020044,2]
[346842572,1735319436747,-1107.62015826,0.00020044,2]
[346842574,1735319436757,-1107.62015826,0.00020044,2]
[346842576,1735319436767,-1107.62015826,0.00020044,2]
[346842578,1735319436776,-1107.62015826,0.00020044,2]
[346842580,1735319436786,-1107.62015826,0.00020044,2]
[346842582,1735319436796,-1107.62015826,0.00020044,2]
[346842584,1735319436805,-1107.62015826,0.00020044,2]
[346842586,1735319436815,-1107.62015826,0.00020044,2]
[346842588,1735319436824,-1107.62015826,0.00020044,2]
[346842590,1735319436833,-1107.62015826,0.00020044,2]
[346842592,1735319436843,-1107.62015826,0.00020044,2]
[346842594,1735319436852,-1107.62015826,0.00020044,2]
[346842596,1735319436863,-1107.62015826,0.00020044,2]
[346842598,1735319436872,-1107.62015826,0.00020044,2]
[346842600,1735319436881,-1107.62015826,0.00020044,2]
[346842602,1735319436891,-1107.62,0.00020044,2]
[346842604,1735319436900,-231.28,0.00020044,2]
[346842616,1735319437001,-173.46737433,0.00020044,2]
[346842619,1735319437020,-173.46,0.00020044,2]
[346842621,1735319437030,-151.0,0.00020048,2]
[346842623,1735319437039,-151.0,0.00020049,7]
[346842625,1735319437048,-21880.94931875,0.0002008,5]
[346842626,1735319437058,-151.0,0.00020092,2]
[346842628,1735319437068,-151.0,0.00020092,2]
[346842630,1735319437077,-151.0,0.00020092,2]
[346842632,1735319437086,-151.0,0.00020092,2]
[346842634,1735319437095,-151.0,0.00020092,2]
[346842636,1735319437106,-151.0,0.00020092,2]
[346842638,1735319437116,-151.0,0.00020092,2]
[346842640,1735319437127,-151.0,0.00020092,2]
[346842643,1735319437136,-234.346057,0.00020092,2]
[346842644,1735319437146,-156.328724,0.00020092,2]
[346842646,1735319437155,-150.15,0.00020102,10]
[346842648,1735319437165,-150.15,0.00020102,2]
[346842650,1735319437175,-150.15,0.00020102,10]
[346842652,1735319437184,-150.15,0.00020102,10]
[346842654,1735319437194,-150.15,0.00020102,10]
[346842657,1735319437204,-150.15,0.00020102,10]
[346842658,1735319437213,-150.15,0.00020102,10]
[346842660,1735319437223,-500.0,0.00020102,10]
[346842662,1735319437232,-500.0,0.00020102,10]
[346842663,1735319437241,-150.15,0.00020102,2]
[346842664,1735319437250,-2562.97725004,0.00020136,2]
[346842665,1735319437259,-151.0,0.00020136,2]
[346842666,1735319437268,-151.0,0.00020136,2]
[346842667,1735319437277,-151.0,0.00020136,2]
[346842668,1735319437286,-151.0,0.00020136,2]
[346842669,1735319437296,-201.992542,0.00020136,2]
[346842670,1735319437306,-151.0,0.00020136,2]
[346842671,1735319437316,-151.0,0.00020136,2]
[346842672,1735319437326,-151.0,0.00020136,2]
[346842673,1735319437335,-151.0,0.00020136,2]
[346842674,1735319437344,-151.0,0.00020136,2]
[346842675,1735319437354,-151.0,0.00020136,2]
[346842676,1735319437363,-260.598245,0.00020136,2]
[346842677,1735319437372,-151.0,0.00020136,2]
[346842678,1735319437382,-239.242342,0.00020136,2]
[346842679,1735319437391,-164.268102,0.00020136,2]
[346842680,1735319437400,-164.268102,0.00020136,2]
[346842682,1735319437409,-164.268102,0.00020136,2]
[346842683,1735319437418,-164.268102,0.00020136,2]
[346842685,1735319437428,-164.268102,0.00020136,2]
[346842687,1735319437437,-164.268102,0.00020136,2]
[346842689,1735319437446,-164.268102,0.00020136,2]
[346842691,1735319437456,-164.268102,0.00020136,2]
[346842693,1735319437466,-164.268102,0.00020136,2]
[346842695,1735319437475,-164.268102,0.00020136,2]
[346842697,1735319437485,-164.268102,0.00020136,2]
[346842699,1735319437494,-164.268102,0.00020136,2]
[346842701,1735319437503,-164.268102,0.00020136,2]
[346842703,1735319437513,-164.268102,0.00020136,2]
[346842705,1735319437522,-164.268102,0.00020136,2]
[346842707,1735319437531,-164.268102,0.00020136,2]
[346842709,1735319437544,-164.268102,0.00020136,2]
[346842711,1735319437554,-164.268102,0.00020136,2]
[346842713,1735319437563,-164.268102,0.00020136,2]
[346842715,1735319437572,-164.268094,0.00020136,2]
[346842717,1735319437583,-151.0,0.00020136,2]
[346842719,1735319437592,-151.0,0.00020136,2]
[346842721,1735319437601,-151.0,0.00020136,2]
[346842723,1735319437611,-281.910827,0.00020136,2]
[346842725,1735319437621,-281.910827,0.00020136,2]
[346842727,1735319437632,-281.910827,0.00020136,2]
[346842729,1735319437641,-281.910827,0.00020136,2]
[346842731,1735319437650,-281.910827,0.00020136,2]
[346842733,1735319437659,-281.910827,0.00020136,2]
[346842735,1735319437668,-281.910827,0.00020136,2]
[346842737,1735319437678,-281.910827,0.00020136,2]
[346842739,1735319437687,-281.910827,0.00020136,2]
[346842741,1735319437697,-281.910827,0.00020136,2]
[346842743,1735319437706,-281.910827,0.00020136,2]
[346842745,1735319437716,-281.910827,0.00020136,2]
[346842747,1735319437725,-281.910827,0.00020136,2]
[346842749,1735319437734,-281.910827,0.00020136,2]
[346842751,1735319437743,-281.910827,0.00020136,2]
[346842753,1735319437752,-281.910827,0.00020136,2]
[346842755,1735319437762,-281.910827,0.00020136,2]
[346842757,1735319437771,-281.910827,0.00020136,2]
[346842759,1735319437781,-281.910827,0.00020136,2]
[346842762,1735319437790,-281.910823,0.00020136,2]
[346842765,1735319437800,-151.0,0.00020136,2]
[346842767,1735319437809,-151.0,0.00020136,2]
[346842770,1735319437818,-151.0,0.00020136,2]
[346842771,1735319437827,-151.0,0.00020136,2]
[346842773,1735319437836,-151.0,0.00020136,2]
[346842775,1735319437845,-151.0,0.00020136,2]
[346842777,1735319437855,-151.0,0.00020136,2]
[346842779,1735319437866,-151.0,0.00020136,2]
[346842782,1735319437876,-151.0,0.00020136,2]
[346842784,1735319437885,-151.0,0.00020136,2]
[346842785,1735319437894,-151.0,0.00020136,2]
[346842787,1735319437903,-151.0,0.00020136,2]
[346842789,1735319437913,-151.0,0.00020136,2]
[346842791,1735319437922,-151.0,0.00020136,2]
[346842793,1735319437931,-151.0,0.00020136,2]
[346842795,1735319437941,-151.0,0.00020136,2]
[346842797,1735319437950,-193.170282,0.00020136,2]
[346842799,1735319437959,-454.00065376,0.0002014,4]
[346842801,1735319437970,-453.95531264,0.0002014,4]
[346842803,1735319437979,-151.0,0.00020144,2]
[346842805,1735319437989,-151.0,0.00020144,2]
[346842807,1735319437998,-151.0,0.00020144,2]
[346842809,1735319438008,-151.0,0.00020144,2]
[346842811,1735319438017,-197.399531,0.00020144,2]
[346842813,1735319438027,-151.0,0.00020144,2]
[346842815,1735319438035,-151.0,0.00020144,2]
[346842817,1735319438045,-151.0,0.00020144,2]
[346842819,1735319438054,-151.0,0.00020144,2]
[346842821,1735319438065,-151.0,0.00020144,2]
[346842823,1735319438074,-151.0,0.00020144,2]
[346842825,1735319438083,-284.940063,0.00020144,2]
[346842827,1735319438093,-599.632466,0.00020144,2]
[346842830,1735319438103,-599.632466,0.00020144,2]
[346842832,1735319438115,-599.632466,0.00020144,2]
[346842833,1735319438125,-349.24668899,0.00020144,2]
[346842836,1735319438135,-12759.25487855,0.00020144,2]
[346842838,1735319438144,-73174.5015637,0.00020144,10]
[346842840,1735319438160,-16287.86242933,0.00020144,10]
[346842900,1735319438737,-500.0,0.00013669,2]
[346842903,1735319438748,-560.25071381,0.00013669,2]
[346842905,1735319438757,-500.0,0.00013669,2]
[346842907,1735319438766,-500.0,0.00013669,2]
[346842909,1735319438775,-500.0,0.00013669,2]
[346842910,1735319438785,-500.0,0.00013669,2]
[346842912,1735319438795,-203.70746415,0.00013669,2]
[346842914,1735319438804,-500.0,0.00013669,2]
[346842917,1735319438814,-500.0,0.00013669,2]
[346842918,1735319438823,-500.0,0.00013669,2]
[346842920,1735319438832,-500.0,0.00013669,2]
[346842923,1735319438842,-500.0,0.00013669,2]
[346842925,1735319438851,-500.0,0.00013669,2]
[346842926,1735319438860,-603.03007309,0.00013669,2]
[346842928,1735319438871,-500.0,0.00013669,2]
[346842931,1735319438881,-300.14790039,0.00013669,2]
[346842932,1735319438890,-430.79871846,0.00013669,2]
[346842935,1735319438902,-69.20128154,0.00013669,2]
[346842937,1735319438911,-500.0,0.00013669,2]
[346842939,1735319438920,-208.07480093,0.00013669,2]
[346842941,1735319438931,-291.92519907,0.00013669,2]
[346842943,1735319438940,-292.57480093,0.00013669,2]
[346842963,1735319439124,-2504.16460216,0.00013532,2]
[346842965,1735319439133,-207.42519907,0.00013669,2]
[346842967,1735319439144,-500.0,0.00013669,2]
[346842969,1735319439153,-500.0,0.00013669,2]
[346842971,1735319439163,-500.0,0.00013669,2]
[346842973,1735319439172,-500.0,0.00013669,2]
[346842975,1735319439182,-500.0,0.00013669,2]
[346842977,1735319439191,-500.0,0.00013669,2]
[346842979,1735319439200,-500.0,0.00013669,2]
[346842991,1735319439302,-500.0,0.00013669,2]
[346842993,1735319439312,-514.79284004,0.00013669,2]
[346842995,1735319439322,-500.0,0.00013669,2]
[346842997,1735319439332,-500.0,0.00013669,2]
[346842999,1735319439341,-500.0,0.00013669,2]
[346843001,1735319439351,-500.0,0.00013669,2]
[346843003,1735319439363,-500.0,0.00013669,2]
[346843005,1735319439374,-520.67190592,0.00013669,2]
[346843007,1735319439384,-500.0,0.00013669,2]
[346843009,1735319439395,-500.0,0.00013669,2]
[346843011,1735319439404,-500.0,0.00013669,2]
[346843013,1735319439414,-500.0,0.00013669,2]
[346843015,1735319439424,-500.0,0.00013669,2]
[346843017,1735319439434,-500.0,0.00013669,2]
[346843019,1735319439443,-500.0,0.00013669,2]
[346843021,1735319439453,-500.0,0.00013669,2]
[346843023,1735319439463,-500.0,0.00013669,2]
[346843025,1735319439474,-500.0,0.00013669,2]
[346843027,1735319439484,-500.0,0.00013669,2]
[346843029,1735319439493,-500.0,0.00013669,2]
[346843031,1735319439503,-500.0,0.00013669,2]
[346843033,1735319439512,-500.0,0.00013669,2]
[346843035,1735319439522,-500.0,0.00013669,2]
[346843037,1735319439531,-500.0,0.00013669,2]
[346843039,1735319439543,-500.0,0.00013669,2]
[346843041,1735319439553,-500.0,0.00013669,2]
[346843043,1735319439563,-500.0,0.00013669,2]
[346843045,1735319439572,-500.0,0.00013669,2]
[346843047,1735319439582,-500.0,0.00013669,2]
[346843049,1735319439592,-500.0,0.00013669,2]
[346843051,1735319439601,-500.0,0.00013669,2]
[346843053,1735319439612,-500.0,0.00013669,2]
[346843055,1735319439621,-500.0,0.00013669,2]
[346843057,1735319439630,-500.0,0.00013669,2]
[346843059,1735319439640,-500.0,0.00013669,2]
[346843061,1735319439649,-500.0,0.00013669,2]
[346843063,1735319439658,-500.0,0.00013669,2]
[346843065,1735319439667,-500.0,0.00013669,2]
[346843067,1735319439676,-500.0,0.00013669,2]
[346843069,1735319439686,-500.0,0.00013699,2]
[346843071,1735319439696,-267.22105755,0.00013699,2]
[346843073,1735319439706,-500.0,0.00013968,2]
[346843075,1735319439715,-1000.0,0.00014516,2]
[346843077,1735319439724,-1073.34628191,0.00015518,2]
[346843078,1735319439733,-500.0,0.00016438,2]
[346843081,1735319439743,-490.1943793,0.00016438,2]
[346843083,1735319439752,-599.632466,0.00020144,2]
[346843086,1735319439761,-599.632466,0.00020144,2]
[346843087,1735319439770,-599.632466,0.00020144,2]
[346843090,1735319439781,-599.632466,0.00020144,2]
[346843091,1735319439790,-599.632466,0.00020144,2]
[346843094,1735319439799,-599.632466,0.00020144,2]
[346843095,1735319439809,-599.632466,0.00020144,2]
[346843096,1735319439818,-599.632466,0.00020144,2]
[346843097,1735319439827,-599.632466,0.00020144,2]
[346843098,1735319439836,-599.632466,0.00020144,2]
[346843099,1735319439845,-599.632466,0.00020144,2]
[346843100,1735319439854,-599.632466,0.00020144,2]
[346843101,1735319439867,-599.632466,0.00020144,2]
[346843103,1735319439877,-599.632466,0.00020144,2]
[346843106,1735319439887,-599.632466,0.00020144,2]
[346843108,1735319439896,-599.632466,0.00020144,2]
[346843110,1735319439906,-46610.62013224,0.00020144,10]
[346843113,1735319439918,-18806.21459445,0.00020144,10]
[346843116,1735319439930,-162950.96454309,0.00020144,10]
[346843211,1735319440876,-150.15,0.00020102,10]
[346843212,1735319440886,-599.632476,0.00020144,2]
[346843213,1735319440896,-19312.70078237,0.00020144,10]
[346843276,1735320519444,-343.53401474,9.009e-05,2]
[346843277,1735320519470,-973.93098111,9.1e-05,2]
[346843278,1735320519504,-1317.46499585,9.1e-05,2]
[346843279,1735320519535,-233.43856266,9.1e-05,2]
[346843280,1735320519561,-503.8271329,9.379e-05,2]
[346843284,1735320544460,-1384.90890959,9.192e-05,2]
[346843285,1735320544515,-636.09849713,9.192e-05,2]
[346843286,1735320544540,-748.81041246,9.285e-05,2]
[346843287,1735320544575,-1139.91951562,9.285e-05,2]
[346843288,1735320546163,-132.27747864,9.285e-05,2]
[346843289,1735320546184,-2021.00740672,9.379e-05,2]
[346843290,1735320546206,-192.12102354,0.00011,2]
[346843291,1735320546227,-3524.94171997,0.000111,2]
[346843292,1735320546249,-300.0,0.00012265,2]
[346843293,1735320546270,-24880.0,0.00012267,2]
[346843294,1735320546292,-3611.7438036,0.00012908,2]
[346843295,1735320546316,-500.0,0.00013073,2]
[346843296,1735320546338,-456.68,0.00013073,2]
[346843297,1735320546359,-500.0,0.00013073,2]
[346843298,1735320546381,-500.0,0.00013347,2]
[346843299,1735320546402,-237.9676526,0.00013461,2]
[346843300,1735320546424,-500.0,0.00013461,2]
[346843301,1735320546449,-500.0,0.00013461,2]
[346843302,1735320546470,-500.0,0.00013461,2]
[346843303,1735320546493,-500.0,0.00013461,2]
[346843304,1735320546516,-500.0,0.00013461,2]
[346843305,1735320546537,-500.0,0.00013461,2]
[346843306,1735320546558,-500.0,0.00013461,2]
[346843307,1735320546578,-573.50295927,0.00013461,2]
[346843308,1735320546599,-500.0,0.00013461,2]
[346843309,1735320546621,-500.0,0.00013461,2]
[346843310,1735320546642,-503.72882992,0.00013461,2]
[346843311,1735320546662,-500.0,0.00013461,2]
[346843312,1735320546684,-500.0,0.00013461,2]
[346843313,1735320546704,-500.0,0.00013461,2]
[346843314,1735320546724,-512.292235,0.00013461,2]
[346843315,1735320546745,-500.0,0.00013461,2]
[346843316,1735320546767,-420.0,0.00013461,2]
[346843317,1735320546787,-500.0,0.00013462,2]
[346843318,1735320546808,-500.0,0.00013462,2]
[346843319,1735320546932,-500.0,0.00013462,2]
[346843320,1735320546954,-500.0,0.00013462,2]
[346843321,1735320546988,-500.0,0.00013462,2]
[346843322,1735320547015,-514.04400885,0.00013462,2]
[346843323,1735320547040,-500.0,0.00013462,2]
[346843324,1735320547064,-193.01975039,0.00013462,2]
[346843325,1735320547087,-500.0,0.00013462,2]
[346843326,1735320547110,-500.0,0.00013462,2]
[346843327,1735320547133,-500.0,0.00013462,2]
[346843328,1735320547155,-500.0,0.00013462,2]
[346843329,1735320547176,-500.90371166,0.00013462,2]
[346843330,1735320547202,-500.0,0.00013462,2]
[346843331,1735320547223,-500.0,0.00013462,2]
[346843332,1735320547245,-500.0,0.00013462,2]
[346843333,1735320547267,-500.0,0.00013462,2]
[346843334,1735320547288,-500.0,0.00013462,2]
[346843335,1735320547310,-150.0,0.000135,2]
[346843336,1735320547331,-500.0,0.00013567,2]
[346843337,1735320547354,-500.0,0.00013567,2]
[346843338,1735320547376,-500.0,0.00013567,2]
[346843339,1735320547399,-500.0,0.00013567,2]
[346843340,1735320547422,-500.0,0.00013567,2]
[346843341,1735320547445,-500.0,0.00013567,2]
[346843342,1735320547468,-500.0,0.00013567,2]
[346843343,1735320547488,-500.0,0.00013567,2]
[346843344,1735320547510,-333.36717737,0.00013567,2]
[346843345,1735320547531,-500.0,0.00013567,2]
[346843346,1735320547552,-500.0,0.00013567,2]
[346843347,1735320547572,-500.0,0.00013567,2]
[346843348,1735320547594,-500.0,0.00013567,2]
[346843349,1735320547614,-500.0,0.00013567,2]
[346843350,1735320547634,-500.0,0.00013567,2]
[346843351,1735320547655,-500.0,0.00013567,2]
[346843352,1735320547676,-620.7468438,0.00013567,2]
[346843353,1735320547697,-500.0,0.00013567,2]
[346843354,1735320547720,-500.0,0.00013567,2]
[346843355,1735320547743,-500.0,0.00013567,2]
[346843356,1735320547765,-500.0,0.00013567,2]
[346843357,1735320547788,-500.0,0.00013567,2]
[346843358,1735320547810,-500.0,0.00013567,2]
[346843359,1735320547832,-500.0,0.00013567,2]
[346843360,1735320547854,-500.0,0.00013567,2]
[346843361,1735320547879,-500.0,0.00013567,2]
[346843362,1735320547901,-500.0,0.00013567,2]
[346843363,1735320547924,-500.0,0.00013567,2]
[346843364,1735320547952,-500.0,0.00013567,2]
[346843365,1735320547974,-500.0,0.00013567,2]
[346843366,1735320547995,-500.0,0.00013567,2]
[346843367,1735320548019,-500.0,0.00013567,2]
[346843368,1735320548042,-500.0,0.00013567,2]
[346843369,1735320548065,-500.0,0.00013567,2]
[346843370,1735320548087,-500.0,0.00013567,2]
[346843371,1735320548108,-500.0,0.00013567,2]
[346843372,1735320548131,-500.0,0.00013567,2]
[346843373,1735320548155,-500.0,0.00013567,2]
[346843374,1735320548178,-500.0,0.00013567,2]
[346843375,1735320548200,-500.0,0.00013567,2]
[346843376,1735320548223,-500.0,0.00013567,2]